fUSD/lending_fUSD_20240712
["ID","MTS","AMOUNT","RATE_DAILY","PERIOD"]
[331889627,1720817446961,-635.44,0.00013996,2]
[331889628,1720817446971,-500.0,0.00013996,2]
[331889629,1720817446980,-500.0,0.00013996,2]
[331889630,1720817446990,-150.0,0.00013996,2]
[331889631,1720817447001,-500.0,0.00013996,2]
[331889632,1720817447012,-657.0,0.00013996,2]
[331889633,1720817447024,-500.0,0.00013996,2]
[331889634,1720817447121,-502.94,0.00013996,2]
[331889635,1720817447132,-500.0,0.00013996,2]
[331889636,1720817447142,-500.0,0.00013996,2]
[331889637,1720817447151,-500.0,0.00013996,2]
[331889638,1720817447161,-672.04,0.00013996,2]
[331889639,1720817447170,-579.85,0.00013996,2]
[331889640,1720817447180,-500.0,0.00013996,2]
[331889641,1720817447190,-500.0,0.00013996,2]
[331889642,1720817447199,-500.0,0.00013996,2]
[331889643,1720817447208,-500.0,0.00013996,2]
[331889644,1720817447217,-669.63,0.00013996,2]
[331889645,1720817447227,-635.88,0.00013996,2]
[331889646,1720817447235,-500.0,0.00013996,2]
[331889647,1720817447244,-500.0,0.00013996,2]
[331889648,1720817447254,-500.0,0.00013996,2]
[331889649,1720817447263,-500.0,0.00013996,2]
[331889650,1720817447273,-500.0,0.00013996,2]
[331889651,1720817447282,-500.0,0.00013996,2]
[331889652,1720817447291,-500.0,0.00013996,2]
[331889653,1720817447301,-700.52,0.00013996,2]
[331889654,1720817447310,-826.2,0.00013996,2]
[331889655,1720817447319,-500.0,0.00013996,2]
[331889656,1720817447328,-651.54,0.00013996,2]
[331889657,1720817447337,-500.0,0.00013996,2]
[331889658,1720817447347,-658.59,0.00013996,2]
[331889659,1720817447361,-500.0,0.00013996,2]
[331889660,1720817447370,-500.0,0.00013996,2]
[331889661,1720817447379,-500.0,0.00013996,2]
[331889662,1720817447388,-744.03,0.00013996,2]
[331889663,1720817447398,-676.29,0.00013996,2]
[331889664,1720817447407,-500.0,0.00013996,2]
[331889665,1720817447416,-500.0,0.00013996,2]
[331889666,1720817447426,-500.0,0.00013996,2]
[331889667,1720817447437,-500.0,0.00013996,2]
[331889668,1720817447446,-500.0,0.00013996,2]
[331889669,1720817447455,-634.11532337,0.00013996,2]
[331889670,1720817447464,-500.0,0.00013996,2]
[331889671,1720817447473,-500.0,0.00013996,2]
[331889672,1720817447482,-500.0,0.00013996,2]
[331889673,1720817447493,-500.0,0.00013996,2]
[331889674,1720817447503,-500.0,0.00013996,2]
[331889675,1720817447512,-500.0,0.00013996,2]
[331889676,1720817447521,-500.0,0.00013996,2]
[331889677,1720817447530,-252.92,0.00013996,2]
[331889678,1720817447539,-500.0,0.00013996,2]
[331889679,1720817447549,-540.48,0.00013996,2]
[331889680,1720817447558,-500.0,0.00013996,2]
[331889681,1720817447567,-500.0,0.00013996,2]
[331889682,1720817447576,-644.1,0.00013996,2]
[331889683,1720817447585,-500.0,0.00013996,2]
[331889684,1720817447594,-500.0,0.00013996,2]
[331889685,1720817447604,-500.0,0.00013996,2]
[331889686,1720817447614,-500.0,0.00013996,2]
[331889687,1720817447623,-183.41410005,0.00013996,2]
[331889688,1720817447632,-500.0,0.00013996,2]
[331889689,1720817447645,-500.0,0.00013996,2]
[331889690,1720817447654,-854.78,0.00013996,2]
[331889691,1720817447663,-500.0,0.00013996,2]
[331889692,1720817447671,-500.0,0.00013996,2]
[331889693,1720817447681,-1210.82,0.00013996,2]
[331889694,1720817447691,-500.0,0.00013996,2]
[331889695,1720817447701,-500.0,0.00013996,2]
[331889696,1720817447710,-500.0,0.00013996,2]
[331889697,1720817447720,-500.0,0.00013996,2]
[331889698,1720817447729,-890.99,0.00013996,2]
[331889699,1720817447741,-500.0,0.00013996,2]
[331889700,1720817447751,-610.41,0.00013996,2]
[331889701,1720817447759,-850.32,0.00013996,2]
[331889702,1720817447769,-500.0,0.00013996,2]
[331889703,1720817447779,-500.0,0.00013996,2]
[331889704,1720817447800,-500.0,0.00013996,2]
[331889705,1720817447817,-565.8,0.00013996,2]
[331889706,1720817447835,-500.0,0.00013996,2]
[331889707,1720817447856,-500.0,0.00013996,2]
[331889708,1720817447875,-500.0,0.00013996,2]
[331889709,1720817447893,-500.0,0.00013996,2]
[331889710,1720817447909,-500.0,0.00013996,2]
[331889711,1720817447924,-500.0,0.00013996,2]
[331889712,1720817447943,-500.0,0.00013996,2]
[331889713,1720817447961,-553.25,0.00013996,2]
[331889714,1720817447973,-500.0,0.00013996,2]
[331889715,1720817447990,-500.0,0.00013996,2]
[331889716,1720817448007,-500.0,0.00013996,2]
[331889717,1720817448023,-500.0,0.00013996,2]
[331889718,1720817448037,-500.0,0.00013996,2]
[331889719,1720817448051,-500.0,0.00013996,2]
[331889720,1720817448066,-500.0,0.00013996,2]
[331889721,1720817448080,-500.0,0.00013996,2]
[331889722,1720817448095,-1045.57,0.00013996,2]
[331889723,1720817448109,-753.33,0.00013996,2]
[331889724,1720817448123,-1566.45,0.00013996,2]
[331889725,1720817448138,-806.16,0.00013996,2]
[331889726,1720817448153,-500.0,0.00013996,2]
[331889727,1720817448169,-701.21,0.00013996,2]
[331889728,1720817448195,-500.0,0.00013996,2]
[331889729,1720817448213,-500.0,0.00013996,2]
[331889730,1720817448230,-500.0,0.00013996,2]
[331889731,1720817448248,-500.0,0.00013996,2]
[331889732,1720817448264,-500.0,0.00013996,2]
[331889733,1720817448281,-500.0,0.00013996,2]
[331889734,1720817448297,-500.0,0.00013996,2]
[331889735,1720817448313,-500.0,0.00013996,2]
[331889736,1720817448329,-500.0,0.00013996,2]
[331889737,1720817448345,-500.0,0.00013996,2]
[331889738,1720817448363,-500.0,0.00013996,2]
[331889739,1720817448378,-587.67,0.00013996,2]
[331889740,1720817448395,-500.0,0.00013996,2]
[331889741,1720817448412,-500.0,0.00013996,2]
[331889742,1720817448428,-500.0,0.00013996,2]
[331889743,1720817448443,-500.0,0.00013996,2]
[331889744,1720817448459,-500.0,0.00013996,2]
[331889745,1720817448474,-500.0,0.00013996,2]
[331889746,1720817448489,-500.0,0.00013996,2]
[331889747,1720817448503,-500.0,0.00013996,2]
[331889748,1720817448518,-500.0,0.00013996,2]
[331889749,1720817448533,-525.58,0.00013996,2]
[331889750,1720817448548,-547.63,0.00013996,2]
[331889751,1720817448563,-500.0,0.00013996,2]
[331889752,1720817448579,-500.0,0.00013996,2]
[331889753,1720817448594,-4270.02,0.00013996,2]
[331889754,1720817448609,-776.04,0.00013996,2]
[331889755,1720817448624,-511.16,0.00013996,2]
[331889756,1720817448640,-500.0,0.00013996,2]
[331889757,1720817448657,-806.36,0.00013996,2]
[331889758,1720817448674,-500.0,0.00013996,2]
[331889759,1720817448690,-500.0,0.00013996,2]
[331889760,1720817448704,-879.21,0.00013996,2]
[331889761,1720817448714,-500.0,0.00013996,2]
[331889762,1720817448723,-838.86,0.00013996,2]
[331889763,1720817448733,-500.0,0.00013996,2]
[331889764,1720817448743,-500.0,0.00013996,2]
[331889765,1720817448752,-500.0,0.00013996,2]
[331889766,1720817448761,-500.0,0.00013996,2]
[331889767,1720817448771,-500.0,0.00013996,2]
[331889768,1720817448780,-500.0,0.00013996,2]
[331889769,1720817448790,-500.0,0.00013996,2]
[331889770,1720817448799,-171.81,0.00013998,2]
[331889771,1720817448998,-275172.99425782,0.00014,2]
[331889772,1720817449692,-151.0,0.000139,2]
[331889773,1720817449701,-149.001004,0.00013942,2]
[331889774,1720817449713,-1.998996,0.00013942,2]
[331889775,1720817449722,-150.0,0.00013953,2]
[331889776,1720817449731,-151.0,0.00013985,2]
[331889777,1720817449741,-1904.593214,0.00014,2]
[331889778,1720817449752,-1664.7,0.00014,2]
[331889779,1720817449766,-1490.43650887,0.00014,2]
[331889780,1720817449777,-354.23051344,0.00014,2]
[331889781,1720817449913,-250.0,0.00012885,2]
[331889782,1720817449923,-378.76733255,0.00014,2]
[331889783,1720817449934,-90151.91493291,0.00014,2]
[331889784,1720817449947,-11520.53701622,0.00014,2]
[331889785,1720817449961,-627.51350837,0.00014,2]
[331889786,1720817449976,-1047.12412716,0.00014,2]
[331889787,1720817449988,-2297.4020911,0.00014,2]
[331889788,1720817450002,-302.37624648,0.00014,2]
[331889789,1720817450188,-702.22,0.00014,2]
[331889790,1720817450203,-1388.82081271,0.00014,2]
[331889791,1720817450214,-1477.54835316,0.00014,2]
[331889792,1720817450256,-910.5514258,0.00014,2]
[331889793,1720817450542,-5032.53691078,0.00014,2]
[331889794,1720817450896,-500.0,0.00013832,2]
[331889795,1720817450905,-298.75894579,0.00013887,2]
[331889796,1720817451081,-201.24105421,0.00013887,2]
[331889797,1720817451090,-172.54183719,0.00013942,2]
[331889801,1720817549065,417.76,0.00010992,2]
[331889804,1720817601141,3000.0,0.00026439,120]
[331889807,1720817748234,2519.51716486,0.00025,60]
[331889811,1720817824088,208.73731951,0.00011199,2]
[331889817,1720817893709,369.26898689,0.00011199,2]
[331889821,1720817962610,5238.45911663,0.00011199,2]
[331889823,1720818055684,414.65,0.00010453,2]
[331889825,1720818280905,1631.04293426,0.00011199,2]
[331889827,1720818327668,238.27870455,0.00011199,2]
[331889828,1720818374330,155.0,0.00011199,2]
[331889833,1720818486612,155.0,0.00011199,2]
[331889840,1720818501341,155.0,0.00011199,2]
[331889841,1720818535568,208.93167909,0.00011199,2]
[331889881,1720818632903,-423.248988,0.00011728,2]
[331889882,1720818632915,-546.20753737,0.00011787,2]
[331889883,1720818632926,-3207.60087916,0.00011787,2]
[331889884,1720818632937,-1565.31339387,0.00011787,2]
[331889885,1720818632963,-361.6194352,0.00011787,2]
[331889886,1720818632974,-197.61572727,0.00011787,2]
[331889887,1720818632984,-197.61572727,0.00011793,2]
[331889888,1720818632993,-197.61572727,0.00011799,2]
[331889889,1720818633002,-6192.78687506,0.00011827,2]
[331889890,1720818633012,-1481.88,0.00011886,2]
[331889891,1720818633021,-10717.72590498,0.00011888,2]
[331889892,1720818633049,-602.4599999,0.00011888,2]
[331889893,1720818633060,-331.9599993,0.00011888,2]
[331889894,1720818633071,-1821.36409582,0.00011888,2]
[331889895,1720818633081,-608.54,0.00011899,2]
[331889896,1720818633091,-293.96,0.0001192,2]
[331889897,1720818633100,-1489.97,0.00011935,2]
[331889898,1720818633109,-167.77,0.00012019,2]
[331889899,1720818633118,-200.0,0.0001202,2]
[331889900,1720818633127,-250.0,0.00012037,2]
[331889901,1720818633136,-8537.91,0.00012066,2]
[331889902,1720818633145,-500.0,0.00012092,2]
[331889903,1720818633155,-1000.0,0.00012107,2]
[331889904,1720818633164,-150.0,0.00012258,2]
[331889905,1720818633173,-250.0,0.00012378,2]
[331889906,1720818633182,-307.31,0.00012378,2]
[331889907,1720818633192,-321.97,0.00012378,2]
[331889908,1720818633201,-150.99,0.00012378,2]
[331889909,1720818633210,-157.97753922,0.00012389,2]
[331889910,1720818633220,-235.94,0.00012393,2]
[331889911,1720818633229,-906.59,0.00012393,2]
[331889912,1720818633239,-242.53,0.000127,2]
[331889913,1720818633249,-414.65,0.00012717,2]
[331889914,1720818633258,-150.99,0.00012746,2]
[331889915,1720818633267,-500.0,0.00012981,2]
[331889916,1720818633277,-155.0,0.00013128,2]
[331889917,1720818633286,-369.09687393,0.00013128,2]
[331889918,1720818633296,-150.0,0.00013158,2]
[331889919,1720818633305,-10778.54497192,0.00013159,2]
[331889922,1720818633316,-9415.33628575,0.00013159,2]
[331889924,1720818633327,-909.3594811,0.00013159,2]
[331889926,1720818633339,-11535.03042898,0.00013159,2]
[331889928,1720818633355,-11604.01258862,0.00013159,2]
[331889931,1720818633372,-160165.71624363,0.00013159,2]
[331889933,1720818633382,-2500.0,0.00013351,2]
[331889935,1720818633391,-293.96,0.0001341,2]
[331889937,1720818633400,-1706.01053776,0.00013472,2]
[331889939,1720818633410,-263.75418329,0.00013472,2]
[331889940,1720818633419,-5606.142,0.00013474,2]
[331889942,1720818633429,-848.295,0.00013523,2]
[331889944,1720818633438,-571.4238566,0.00013543,2]
[331889946,1720818633447,-155.0,0.00013574,2]
[331889948,1720818633456,-157.97753922,0.00013598,2]
[331889949,1720818633466,-12491.4995,0.00013599,2]
[331889950,1720818633475,-206.92832689,0.00013599,2]
[331889951,1720818633485,-302.85528588,0.00013599,2]
[331889952,1720818633495,-1000.0,0.0001362,2]
[331889953,1720818633505,-212.7818,0.00013671,2]
[331889954,1720818633514,-500.0,0.00013698,2]
[331889955,1720818633523,-500.0,0.00013698,2]
[331889956,1720818633533,-500.0,0.00013698,2]
[331889957,1720818633542,-500.0,0.00013698,2]
[331889958,1720818633552,-500.0,0.00013698,2]
[331889959,1720818633561,-500.0,0.00013698,2]
[331889960,1720818633571,-500.0,0.00013698,2]
[331889961,1720818633580,-500.0,0.00013698,2]
[331889962,1720818633589,-500.0,0.00013698,2]
[331889963,1720818633599,-500.0,0.00013698,2]
[331889964,1720818633608,-500.0,0.00013698,2]
[331889965,1720818633618,-500.0,0.00013698,2]
[331889966,1720818633628,-500.0,0.00013698,2]
[331889967,1720818633637,-500.0,0.00013698,2]
[331889968,1720818633647,-500.0,0.00013698,2]
[331889969,1720818633660,-529.54,0.00013698,2]
[331889970,1720818633670,-500.0,0.00013698,2]
[331889971,1720818633680,-500.0,0.00013698,2]
[331889972,1720818633689,-500.0,0.00013698,2]
[331889973,1720818633699,-500.0,0.00013698,2]
[331889974,1720818633708,-545.16,0.00013698,2]
[331889975,1720818633718,-500.0,0.00013698,2]
[331889976,1720818633728,-236.95,0.00013698,2]
[331889977,1720818633740,-500.0,0.00013698,2]
[331889978,1720818633749,-547.5,0.00013698,2]
[331889979,1720818633759,-500.0,0.00013698,2]
[331889980,1720818633768,-500.0,0.00013698,2]
[331889981,1720818633778,-587.44558604,0.00013698,2]
[331889982,1720818633787,-500.0,0.00013698,2]
[331889983,1720818633796,-500.0,0.00013698,2]
[331889984,1720818633806,-449.83917272,0.00013698,2]
[331889985,1720818633816,-500.0,0.00013698,2]
[331889986,1720818633826,-500.0,0.00013698,2]
[331889987,1720818633836,-500.0,0.00013698,2]
[331889988,1720818633846,-500.0,0.00013698,2]
[331889989,1720818633855,-500.0,0.00013698,2]
[331889990,1720818633865,-560.03,0.00013698,2]
[331889991,1720818633875,-500.0,0.00013698,2]
[331889992,1720818633884,-500.0,0.00013698,2]
[331889993,1720818633894,-500.0,0.00013698,2]
[331889994,1720818633903,-500.0,0.00013698,2]
[331889995,1720818633913,-500.0,0.00013698,2]
[331889996,1720818633922,-500.0,0.00013698,2]
[331889997,1720818633931,-500.0,0.00013698,2]
[331889998,1720818633941,-500.0,0.00013698,2]
[331889999,1720818633951,-500.0,0.00013698,2]
[331890000,1720818633961,-500.0,0.00013698,2]
[331890001,1720818633970,-151.43,0.00013698,2]
[331890002,1720818633980,-558.03,0.00013698,2]
[331890003,1720818633990,-529.9,0.00013698,2]
[331890004,1720818633999,-172.65065049,0.00013698,2]
[331890005,1720818634009,-223.86186396,0.00013698,2]
[331890006,1720818634018,-500.0,0.00013698,2]
[331890007,1720818634027,-500.0,0.00013698,2]
[331890008,1720818634037,-583.77,0.00013698,2]
[331890009,1720818634046,-500.0,0.00013698,2]
[331890010,1720818634055,-500.0,0.00013698,2]
[331890011,1720818634065,-542.95,0.00013698,2]
[331890012,1720818634074,-500.0,0.00013698,2]
[331890013,1720818634084,-500.0,0.00013698,2]
[331890014,1720818634093,-500.0,0.00013698,2]
[331890015,1720818634102,-500.0,0.00013698,2]
[331890016,1720818634111,-500.0,0.00013698,2]
[331890017,1720818634121,-563.57,0.00013698,2]
[331890018,1720818634130,-500.0,0.00013698,2]
[331890019,1720818634140,-500.0,0.00013698,2]
[331890020,1720818634150,-500.0,0.00013698,2]
[331890021,1720818634159,-500.0,0.00013698,2]
[331890022,1720818634168,-500.0,0.00013698,2]
[331890023,1720818634178,-500.0,0.00013698,2]
[331890024,1720818634188,-500.0,0.00013698,2]
[331890025,1720818634197,-500.0,0.00013698,2]
[331890026,1720818634207,-500.0,0.00013698,2]
[331890027,1720818634218,-500.0,0.00013698,2]
[331890028,1720818634227,-500.0,0.00013698,2]
[331890029,1720818634237,-500.0,0.00013698,2]
[331890030,1720818634247,-500.0,0.00013698,2]
[331890031,1720818634256,-378.83264462,0.00013698,2]
[331890032,1720818634266,-500.0,0.00013698,2]
[331890033,1720818634275,-500.75,0.00013698,2]
[331890034,1720818634285,-500.0,0.00013698,2]
[331890035,1720818634294,-500.0,0.00013698,2]
[331890036,1720818634304,-500.0,0.00013698,2]
[331890037,1720818634313,-846.66,0.00013698,2]
[331890038,1720818634322,-500.0,0.00013698,2]
[331890039,1720818634332,-411.733914,0.00013698,2]
[331890040,1720818634342,-712.32,0.00013698,2]
[331890041,1720818634351,-500.0,0.00013698,2]
[331890042,1720818634361,-500.0,0.00013698,2]
[331890043,1720818634370,-500.0,0.00013698,2]
[331890044,1720818634381,-292.45942186,0.00013698,2]
[331890045,1720818634391,-500.0,0.00013698,2]
[331890046,1720818634400,-500.0,0.00013698,2]
[331890047,1720818634409,-659.45,0.00013698,2]
[331890048,1720818634418,-500.0,0.00013698,2]
[331890049,1720818634427,-500.0,0.00013698,2]
[331890050,1720818634437,-508.67,0.00013698,2]
[331890051,1720818634446,-500.0,0.00013698,2]
[331890052,1720818634456,-1318.12,0.00013698,2]
[331890053,1720818634465,-500.0,0.00013698,2]
[331890054,1720818634475,-500.0,0.00013698,2]
[331890055,1720818634484,-500.0,0.00013698,2]
[331890056,1720818634493,-500.0,0.00013698,2]
[331890057,1720818634503,-500.0,0.00013698,2]
[331890058,1720818634513,-500.0,0.00013698,2]
[331890059,1720818634522,-500.0,0.00013698,2]
[331890060,1720818634531,-500.0,0.00013698,2]
[331890061,1720818634541,-500.0,0.00013698,2]
[331890062,1720818634550,-500.0,0.00013698,2]
[331890063,1720818634559,-1009.01,0.00013698,2]
[331890064,1720818634569,-500.0,0.00013698,2]
[331890065,1720818634579,-500.0,0.00013698,2]
[331890066,1720818634588,-500.0,0.00013698,2]
[331890067,1720818634597,-500.0,0.00013698,2]
[331890068,1720818634607,-680.84,0.00013698,2]
[331890069,1720818634618,-708.6,0.00013698,2]
[331890070,1720818634627,-500.0,0.00013698,2]
[331890071,1720818634637,-500.0,0.00013698,2]
[331890072,1720818634647,-500.0,0.00013698,2]
[331890073,1720818634659,-500.0,0.00013698,2]
[331890074,1720818634671,-500.0,0.00013698,2]
[331890075,1720818634680,-500.0,0.00013698,2]
[331890076,1720818634690,-500.0,0.00013698,2]
[331890077,1720818634699,-500.0,0.00013698,2]
[331890078,1720818634709,-627.77,0.00013698,2]
[331890079,1720818634717,-500.0,0.00013698,2]
[331890080,1720818634727,-500.0,0.00013698,2]
[331890081,1720818634737,-500.0,0.00013698,2]
[331890082,1720818634747,-4593.31,0.00013698,2]
[331890083,1720818634757,-584.34,0.00013698,2]
[331890084,1720818634766,-232.10262623,0.00013698,2]
[331890085,1720818634775,-500.0,0.00013698,2]
[331890086,1720818634784,-871.31,0.00013698,2]
[331890087,1720818634794,-500.0,0.00013698,2]
[331890088,1720818634803,-500.0,0.00013698,2]
[331890089,1720818634812,-500.0,0.00013698,2]
[331890090,1720818634822,-1861.41,0.00013698,2]
[331890091,1720818634832,-671.97,0.00013698,2]
[331890092,1720818634841,-500.0,0.00013698,2]
[331890093,1720818634850,-500.0,0.00013698,2]
[331890094,1720818634859,-500.0,0.00013698,2]
[331890095,1720818634868,-500.0,0.00013698,2]
[331890096,1720818634877,-500.0,0.00013698,2]
[331890097,1720818634886,-500.0,0.00013698,2]
[331890098,1720818634895,-500.0,0.00013698,2]
[331890099,1720818634905,-500.0,0.00013698,2]
[331890100,1720818635044,-500.0,0.00013698,2]
[331890101,1720818635054,-500.0,0.00013698,2]
[331890102,1720818635063,-500.0,0.00013698,2]
[331890103,1720818635072,-500.0,0.00013698,2]
[331890104,1720818635081,-500.0,0.00013698,2]
[331890105,1720818635090,-631.12,0.00013698,2]
[331890106,1720818635099,-500.0,0.00013698,2]
[331890107,1720818635108,-500.0,0.00013698,2]
[331890108,1720818635118,-646.7,0.00013698,2]
[331890109,1720818635127,-500.0,0.00013698,2]
[331890110,1720818635136,-500.0,0.00013698,2]
[331890111,1720818635145,-500.0,0.00013698,2]
[331890112,1720818635154,-500.0,0.00013698,2]
[331890113,1720818635163,-548.82,0.00013698,2]
[331890114,1720818635173,-500.0,0.00013698,2]
[331890115,1720818635182,-500.0,0.00013698,2]
[331890116,1720818635191,-500.0,0.00013698,2]
[331890117,1720818635200,-500.0,0.00013698,2]
[331890118,1720818635209,-500.0,0.00013698,2]
[331890119,1720818635218,-732.68,0.00013698,2]
[331890120,1720818635226,-500.0,0.00013698,2]
[331890121,1720818635236,-500.0,0.00013698,2]
[331890122,1720818635245,-500.0,0.00013698,2]
[331890123,1720818635254,-309.2119936,0.00013698,2]
[331890124,1720818635266,-699.05,0.00013698,2]
[331890125,1720818635275,-500.0,0.00013698,2]
[331890126,1720818635284,-500.0,0.00013698,2]
[331890127,1720818635294,-426.6271298,0.00013698,2]
[331890128,1720818635303,-500.0,0.00013698,2]
[331890129,1720818635311,-855.81,0.00013699,2]
[331890130,1720818635320,-166.99,0.00013699,2]
[331890131,1720818635330,-5273.47467218,0.00013699,2]
[331890132,1720818635619,-1770.36620858,0.00013699,2]
[331890133,1720818635630,-548.34318324,0.00013699,2]
[331890134,1720818635640,-6160.39373051,0.00013699,2]
[331890153,1720818638032,-4031.31433303,0.00013574,2]
[331890154,1720818638042,-500.0,0.00013698,2]
[331890155,1720818638051,-4863.80255905,0.00013699,2]
[331890156,1720818638064,-2405.77404644,0.00013699,2]
[331890157,1720818638073,-9303.8337042,0.00013699,2]
[331890158,1720818638084,-443.13092382,0.00013699,2]
[331890159,1720818638095,-312.6138,0.00013699,2]
[331890160,1720818638152,-2392.31790448,0.00013699,2]
[331890161,1720818638166,-427.20419193,0.00013699,2]
[331890162,1720818638213,-738.11002,0.00013699,2]
[331890163,1720818638226,-1999.96712907,0.00013699,2]
[331890164,1720818638238,-774.06996451,0.00013699,2]
[331890165,1720818638272,-1988.46091552,0.00013699,2]
[331890166,1720818638283,-500.6964493,0.00013699,2]
[331890324,1720818640039,-500.0,0.00013698,2]
[331890326,1720818640049,-78.34375556,0.00013699,2]
[331890328,1720818640060,-373.89184271,0.00013699,2]
[331890330,1720818640071,-376.955934,0.00013699,2]
[331890332,1720818640082,-397.63098387,0.00013699,2]
[331890334,1720818640094,-2314.22067559,0.00013699,2]
[331890336,1720818640105,-1108.97,0.00013699,2]
[331890338,1720818640116,-874.997,0.00013699,2]
[331890340,1720818640127,-1002.76870544,0.00013699,2]
[331890342,1720818640137,-147.93194421,0.00013699,2]
[331890344,1720818640148,-85567.13992091,0.00013699,2]
[331890346,1720818640159,-256.89893274,0.00013699,2]
[331890348,1720818640170,-72695.16729025,0.00013699,2]
[331890351,1720818640187,-500.0,0.00013698,2]
[331890353,1720818640196,-170.7,0.00013699,2]
[331890355,1720818640207,-271.26559914,0.00013699,2]
[331890357,1720818640217,-9868.98114784,0.00013699,2]
[331890359,1720818640229,-3870.18624551,0.00013699,2]
[331890361,1720818640240,-500.0,0.00013699,2]
[331890363,1720818640251,-63502.53377146,0.00013699,2]
[331890365,1720818640262,-3227.78121586,0.00013699,2]
[331890375,1720818640345,-4921.41393208,0.00013699,2]
[331890377,1720818640355,-4368.4282,0.00013699,2]
[331890379,1720818640364,-4054.072,0.00013699,2]
[331890381,1720818640373,-5000.0,0.00013719,2]
[331890383,1720818640382,-500.0,0.00013753,2]
[331890385,1720818640393,-500.0,0.00013753,2]
[331890387,1720818640402,-500.0,0.00013753,2]
[331890389,1720818640412,-500.0,0.00013753,2]
[331890391,1720818640422,-500.0,0.00013753,2]
[331890393,1720818640431,-500.0,0.00013753,2]
[331890395,1720818640440,-171.08825445,0.00013753,2]
[331890397,1720818640450,-500.0,0.00013753,2]
[331890399,1720818640459,-500.0,0.00013753,2]
[331890401,1720818640468,-500.0,0.00013753,2]
[331890403,1720818640478,-500.0,0.00013753,2]
[331890404,1720818640487,-500.0,0.00013753,2]
[331890406,1720818640498,-500.0,0.00013753,2]
[331890408,1720818640507,-372.50188144,0.00013753,2]
[331890410,1720818640517,-529.54,0.00013753,2]
[331890412,1720818640527,-500.0,0.00013753,2]
[331890414,1720818640536,-500.0,0.00013753,2]
[331890417,1720818640546,-500.0,0.00013753,2]
[331890419,1720818640556,-500.0,0.00013753,2]
[331890420,1720818640565,-545.16,0.00013753,2]
[331890422,1720818640574,-454.36,0.00013753,2]
[331890424,1720818640583,-236.95,0.00013753,2]
[331890427,1720818640593,-500.0,0.00013753,2]
[331890430,1720818640602,-547.5,0.00013753,2]
[331890433,1720818640612,-500.0,0.00013753,2]
[331890435,1720818640622,-500.0,0.00013753,2]
[331890437,1720818640632,-500.0,0.00013753,2]
[331890439,1720818640642,-500.0,0.00013753,2]
[331890441,1720818640651,-500.0,0.00013753,2]
[331890444,1720818640663,-500.0,0.00013753,2]
[331890446,1720818640675,-418.62424854,0.00013753,2]
[331890448,1720818640684,-500.0,0.00013753,2]
[331890450,1720818640694,-500.0,0.00013753,2]
[331890452,1720818640703,-560.03,0.00013753,2]
[331890454,1720818640713,-500.0,0.00013753,2]
[331890456,1720818640722,-500.0,0.00013753,2]
[331890457,1720818640732,-500.0,0.00013753,2]
[331890459,1720818640743,-500.0,0.00013753,2]